Cogmind - Beta 14 @@@ ROGUE MODE // 2024.10.02 @ 21:55:42 Player: Kinga Result: Self-destructed Performance ------------- Evolutions (6) 3000 Regions Visited (15) 3000 Robots Destroyed (92) 460 Value Destroyed (3221) 3221 Prototype IDs (217) 4340 Alien Tech Used (0) 0 Bonus (3812) 3812 TOTAL SCORE: 17833 Bonus ------- High Alert Combat Kills 11 Follower Combat Kills 1003 Network Hubs Disabled 200 Met Data Miner 300 Used Data Conduit 3000 Built Enhanced Grunts 300 A7 Reached Mainframe 300 Friendly Fire -1302 Cogmind --------- Core Integrity 671/1150 Matter 300/300 Energy 100/100 System Corruption 6% Temperature Cool (30) Movement Hovering (60) Location -4/Upper Caves Parts ------- > --- POWER (1) -------- (None) > --- PROPULSION (5) --- Combat Gravmag System Combat Gravmag System Improved Antigrav System Improved Antigrav System > --- UTILITY (10) ----- Enhanced Optical Array Advanced Signal Interpreter Advanced Melee Analysis Suite Core Analyzer Improved Hacking Suite Improved Hacking Suite Advanced Hacking Suite Advanced Hacking Suite System Mapper Improved System Shield > --- WEAPON (3) ------- (None) > --- INVENTORY (5) ---- Combat Gravmag System Combat Gravmag System HERF Cannon Cooled Particle Cannon Peak State ------------ > --- POWER ------------ Antimatter Reactor > --- PROPULSION ------- Combat Gravmag System Combat Gravmag System Improved Antigrav System Improved Antigrav System Improved Antigrav System > --- UTILITY ---------- Enhanced Optical Array Advanced Signal Interpreter Core Analyzer Improved Thermal Shield Improved Hacking Suite Improved Hacking Suite Advanced Hacking Suite Advanced Hacking Suite System Mapper Improved System Shield > --- WEAPON ----------- HERF Cannon HERF Cannon Falx > --- INVENTORY -------- Combat Gravmag System Combat Gravmag System HERF Cannon Cooled Particle Cannon [Rating: 117] Favorites ----------- Power Cooled Ion Engine Engine Cooled Ion Engine Power Core Micro Nuclear Core Reactor Antimatter Reactor Propulsion Light Treads Treads Light Treads Hover Unit Combat Gravmag System Flight Unit Biomechanical Wings Utility Improved Hacking Suite Device Heat Sink Storage Medium Storage Unit Processor Enhanced Optical Array Hackware Improved Hacking Suite Protection Light Armor Plating Weapon Improved Assault Rifle Energy Gun Improved EM Shotgun Energy Cannon Light EM Pulse Cannon Ballistic Gun Improved Assault Rifle Ballistic Cannon Magnetic Acceleration Cannon Launcher Rocket Array Impact Weapon Hammer Slashing Weapon Falx Piercing Weapon Spear Special Melee Weapon Advanced Datajack Build | -11 -10 -9 -8 -7 -7 -7 -6 -6 -5 -5 -5 -5 -5 -4 -4 ------- Run | Yrd Mat Mat Mat Fac Low Dat Pro Fac Fac Ext Cet Arc Hub Fac Upp Slots Evolved 12 | . . 2 2 2 . . . 2 2 . . . . 2 . Power . | . . . . . . . . . . . . . . . . Propulsion 3 | . . . 2 . . . . 1 . . . . . . . Utility 8 | . . 1 . 2 . . . 1 2 . . . . 2 . Weapon 1 | . . 1 . . . . . . . . . . . . . Parts Attached 142 | 6 4 9 8 13 . 3 2 23 4 26 5 4 2 33 . Power 17 | 1 1 2 . 2 . . . 2 1 2 2 . 1 3 . Engine 7 | 1 . 2 . 1 . . . . . 1 1 . . 1 . Core 6 | . 1 . . 1 . . . 2 1 1 . . . . . Reactor 4 | . . . . . . . . . . . 1 . 1 2 . Propulsion 41 | 2 . . 3 4 . . 1 7 1 5 . 2 . 16 . Treads 5 | 2 . . 3 . . . . . . . . . . . . Leg . | . . . . . . . . . . . . . . . . Wheel . | . . . . . . . . . . . . . . . . Hover 18 | . . . . . . . . 1 . 4 . 2 . 11 . Flight 18 | . . . . 4 . . 1 6 1 1 . . . 5 . Utility 38 | 1 1 3 2 4 . 3 . 9 . 5 . 2 1 7 . Device 10 | . 1 . 2 1 . 1 . 3 . 1 . . . 1 . Storage 5 | 1 . 2 . 1 . . . 1 . . . . . . . Processor 10 | . . . . 1 . . . 4 . 2 . . . 3 . Hackware 10 | . . . . 1 . 2 . 1 . . . 2 1 3 . Protection 3 | . . 1 . . . . . . . 2 . . . . . Artifact . | . . . . . . . . . . . . . . . . Weapon 46 | 2 2 4 3 3 . . 1 5 2 14 3 . . 7 . Energy Gun 12 | . 2 . 3 . . . . 1 . 3 1 . . 2 . Energy Cannon 8 | . . 1 . 1 . . . . . 2 . . . 4 . Ballistic Gun 8 | 2 . 3 . . . . 1 . . 2 . . . . . Ballistic Cannon 7 | . . . . . . . . 3 . 4 . . . . . Launcher 3 | . . . . . . . . . . 2 1 . . . . Special Weapon . | . . . . . . . . . . . . . . . . Impact Weapon 1 | . . . . . . . . 1 . . . . . . . Slashing Weapon 4 | . . . . . . . . . 2 1 1 . . . . Piercing Weapon 1 | . . . . 1 . . . . . . . . . . . Special Melee Weapon 2 | . . . . 1 . . . . . . . . . 1 . Unidentified Prototypes 6 | . 1 1 1 1 . 2 . . . . . . . . . Corrupted Parts 3 | . 2 . . . . . . . . . 1 . . . . System Corruption 18 | . 10 . . . . . . . . . 8 . . . . Parts Lost 48 | . . 2 6 . . 5 6 4 . 6 . . . 19 . Power 6 | . . 1 . . . 1 . 1 . . . . . 3 . Propulsion 15 | . . . 2 . . 3 2 2 . 2 . . . 4 . Utility 13 | . . . 3 . . 1 2 1 . 1 . . . 5 . Weapon 14 | . . 1 1 . . . 2 . . 3 . . . 7 . Highest Loss Streak 8 | . . 2 2 . . 5 8 2 . 4 . . . 7 . To Critical Strikes . | . . . . . . . . . . . . . . . . Average Slot Usage (%) 83 | . 96 98 86 70 69 66 34 65 88 77 83 92 100 92 . Engine 3 | . 14 5 9 . . . . . . . 5 5 1 . . Core 2 | . . 5 . 6 7 7 . 3 5 4 . . . . . Treads 9 | . 28 22 32 . . . . . . . . . . . . Hover 5 | . . . . . . . . 1 . 2 17 21 29 21 . Flight 8 | . . . . 30 30 25 4 18 29 20 . . . 3 . Device 5 | . 10 11 8 6 . . . 1 5 4 5 5 5 3 . Storage 6 | . 14 11 9 7 7 4 . 3 5 5 5 5 5 2 . Processor 8 | . . . . 1 7 7 7 16 11 15 17 15 5 12 . Hackware 10 | . . . . 7 7 12 16 10 11 11 11 13 26 29 . Protection 2 | . . 9 . . . . . . . . 5 5 2 . . Energy Gun 7 | . 27 15 8 . . . . . . 1 10 11 11 1 . Energy Cannon 1 | . . 7 . . . . . . . . . . . 5 . Ballistic Gun 4 | . . 9 18 1 . . 3 . . . . . . . . Slashing Weapon 1 | . . . . . . . . . 11 3 1 5 5 4 . Peak Build Rating 117 | 6 13 20 24 36 24 43 32 71 72 86 84 90 95 117 83 Average Rating 49 | 4 11 17 21 24 24 29 25 45 71 68 77 84 93 104 83 On Entrance 44 | . 6 13 20 24 24 24 32 11 56 72 76 81 90 95 83 Naked Turns . | . . . . . . . . . . . . . . . . Heaviest Build 62 | 11 17 62 61 17 17 17 3 29 25 37 41 41 52 46 . Greatest Support 80 | 40 40 40 80 17 17 17 9 30 30 42 42 60 60 70 12 Greatest Overweight (x) 1 | . . 1 . . . . . 1 . 1 . . . 1 . Average Overweight (x) . | . . . . . . . . . . . . . . . . Largest Inventory Capacity 20 | 8 8 20 20 20 10 10 5 10 10 10 10 10 10 10 5 Average Capacity 11 | 7 8 15 20 11 10 8 5 7 10 10 10 10 10 7 5 Most Carried 20 | 4 7 20 20 19 10 10 5 7 6 10 10 10 10 10 4 Average Carried 9 | 2 6 13 19 10 10 8 4 3 3 7 9 9 9 6 4 Final Capacity 20 | 8 8 20 20 10 10 5 5 10 10 10 10 10 10 5 5 Final Carried 20 | 4 7 20 20 10 10 5 4 7 3 10 9 10 10 4 4 Class Distribution -------------------- 16% | Hacker-Sprinter 14% | Hacker-Mutant 13% | Wizard-Mutant 11% | Gunner 11% | Scavenger-Mutant 9% | Tank 8% | Mutant 4% | Scavenger-Tank 4% | Sprinter Dominant Class ---------------- Mutant | -10/Materials Tank | -9/Materials Gunner | -8/Materials Sprinter | -7/Factory Sprinter | -7/Lower Caves Sprinter | -7/Data Miner Hacker-Mutant | -6/Proximity Caves Hacker-Sprinter | -6/Factory Hacker-Sprinter | -5/Factory Hacker-Sprinter | -5/Extension Scavenger-Mutant | -5/Cetus Scavenger-Mutant | -5/Archives Wizard-Mutant | -5/Hub_04(d) Wizard-Mutant | -4/Factory Wizard-Mutant | -4/Upper Caves Resources | -11 -10 -9 -8 -7 -7 -7 -6 -6 -5 -5 -5 -5 -5 -4 -4 ----------- Run | Yrd Mat Mat Mat Fac Low Dat Pro Fac Fac Ext Cet Arc Hub Fac Upp Matter Collected 2443 | 196 84 150 308 134 30 . 16 364 . 697 15 156 38 255 . Remotely . | . . . . . . . . . . . . . . . . Salvage Created 4311 | . 268 841 756 . 53 24 49 571 . 944 20 96 91 598 . Parts 194 | . 12 49 38 . 1 3 1 17 . 32 . 9 5 27 . Haulers Intercepted 11 | . . 4 3 . . . . 3 . . . . . 1 . Recyclers Shooed 3 | . . . 2 . . . . . . 1 . . . . . Parts Field Recycled . | . . . . . . . . . . . . . . . . Retrieved Matter . | . . . . . . . . . . . . . . . . Parts Self-Destructed 1 | . . . . . 1 . . . . . . . . . . Prevented . | . . . . . . . . . . . . . . . . Kills | -11 -10 -9 -8 -7 -7 -7 -6 -6 -5 -5 -5 -5 -5 -4 -4 ------- Run | Yrd Mat Mat Mat Fac Low Dat Pro Fac Fac Ext Cet Arc Hub Fac Upp Combat Hostiles Destroyed 55 | . 6 10 10 . 1 . 2 5 . 11 1 . . 9 . Melee 11 | . . . . . 1 . 1 1 . . . . . 8 . Guns 24 | . 4 8 9 . . . 1 . . 2 . . . . . Cannons 13 | . . 2 . . . . . 3 . 7 . . . 1 . AOE 5 | . 2 . 1 . . . . . . 1 1 . . . . Classes Destroyed 13 | . 3 5 1 . . . . 1 . 2 . . . 1 . Worker 2 | . . . . . . . . 1 . . . . 1 . . Tunneler 1 | . . . . . . . . . . . . . . 1 . Hauler 11 | . . 4 3 . . . . 3 . . . . . 1 . Recycler 4 | . 1 . 1 . . . . . . 2 . . . . . Operator 7 | . . 2 . . . . . . . . . 3 1 1 . Watcher 9 | . . 3 . . . . . 3 . 2 1 . . . . Swarmer 9 | . 3 . . . . . 2 . . . . . . 4 . Grunt 25 | . 3 6 7 . 1 . . 2 . 5 . . . 1 . Brawler 1 | . . 1 . . . . . . . . . . . . . Sentry 11 | . . 3 2 . . . . 3 . 2 . . . 1 . Hunter 2 | . . . 1 . . . . . . 1 . . . . . Programmer 6 | . . . . . . . . . . 3 . . . 3 . Cetus Guard 1 | . . . . . . . . . . . 1 . . . . Butcher 1 | . . . . . . . . . . 1 . . . . . Guerrilla 1 | . . . . . . . . . . . . . 1 . . Best Kill Streak 6 | . 5 4 6 . 1 1 1 3 . 4 2 3 1 3 . Combat Bots Only 5 | . 5 2 5 . 1 . 1 1 . 4 1 . . 3 . Max Kills in Single Turn 2 | . 2 2 2 . 1 1 1 1 . 2 1 1 1 1 . Gunslinging 1 | . . . 1 . . . . . . . . . . . . Exploded 1 | . 1 . 1 . . . . . . 1 1 . . . . Melee 1 | . . . . . 1 . 1 1 . . . . . 1 . Uniques/NPCs Destroyed 1 | . . . . . . 1 . . . . . . . . . Data Miner (-7/Data Miner) Combat | -11 -10 -9 -8 -7 -7 -7 -6 -6 -5 -5 -5 -5 -5 -4 -4 -------- Run | Yrd Mat Mat Mat Fac Low Dat Pro Fac Fac Ext Cet Arc Hub Fac Upp Hostile Shots Fired 583 | . 15 22 50 . 8 9 112 91 2 95 12 2 . 159 6 Missed 244 | . 4 7 8 . 4 3 57 51 . 42 8 . . 59 1 Damage Taken 6189 | . 153 208 712 . 65 284 621 440 48 1163 50 160 105 2084 96 Core 1724 | . 26 15 29 . 17 135 442 131 24 378 25 23 . 457 22 Absorbed by Shields 214 | . . . . . . . . . . 166 48 . . . . Ignored by Resistances 75 | . . . . . . . . . . . . . . 75 . Core Remaining (%) 76 | 100 89 96 94 . . . 15 84 . . . . 55 . . Volleys Fired 196 | . 10 33 42 . . . 2 24 . 62 5 . 1 17 . Largest 3 | . 2 3 3 . . . 1 1 . 2 1 . 2 2 . Hottest 176 | . 90 146 109 . . . 23 53 . 130 39 . 130 176 . Shots Fired 351 | . 21 80 126 . . . 2 24 . 69 5 . 3 21 . Gun 246 | . 21 69 126 . . . 2 . . 17 . . 3 8 . Cannon 96 | . . 11 . . . . . 24 . 48 . . . 13 . Launcher 9 | . . . . . . . . . . 4 5 . . . . Special . | . . . . . . . . . . . . . . . . Kinetic 188 | . . 29 84 . . . 2 24 . 49 . . . . . Thermal 53 | . . . 34 . . . . . . 3 . . . 16 . Explosive 9 | . . . . . . . . . . 4 5 . . . . Electromagnetic 101 | . 21 51 8 . . . . . . 13 . . 3 5 . Robot Hit Streak 13 | . 11 11 13 . . . 3 8 . 7 . . 3 6 . Robot Miss Streak 6 | . 3 4 6 . . . . 1 . 3 . . . 2 . Penetration Max . | . . . . . . . . . . . . . . . . Secondary Targets 4 | . . . 4 . . . . . . . . . . . . Max Gunslinging Chain 1 | . . . 1 . . . . . . . . . . . . Shots Hit Robots 315 | . 17 60 84 2 6 1 3 40 . 48 . 6 2 46 . Core Hits 176 | . 11 34 32 . 2 1 2 13 . 44 14 3 6 14 . Critical Kills 1 | . . . . . . . . 1 . . . . . . . Critical Parts Destroyed 2 | . . . 1 . . . . 1 . . . . . . . Critical Strikes 17 | . . 1 2 . . . . 5 . 3 . 1 . 5 . Burn 1 | . . . 1 . . . . . . . . . . . . Destroy 1 | . . . 1 . . . . . . . . . . . . Blast 6 | . . . . . . . . 3 . 3 . . . . . Corrupt 1 | . . 1 . . . . . . . . . . . . . Smash 2 | . . . . . . . . 2 . . . . . . . Sever 6 | . . . . . . . . . . . . 1 . 5 . Melee Attacks 101 | . . . . 2 7 1 1 30 2 4 4 7 1 42 . Impact 31 | . . . . . . . . 30 1 . . . . . . Slashing 58 | . . . . . . . . . 1 4 4 7 1 41 . Piercing 9 | . . . . . 7 1 1 . . . . . . . . Sneak Attacks 17 | . . . . 2 . 1 . 4 . 2 . 4 1 3 . Combat Hostiles 1 | . . . . . . . . 1 . . . . . . . Follow-up Attacks . | . . . . . . . . . . . . . . . . Damage Inflicted 11438 | . 571 1200 1399 . 168 63 69 1423 . 2631 369 575 842 2128 . Guns 3161 | . 323 946 1345 . . . 34 . . 352 . . . 161 . Cannons 2505 | . . 163 . . . . . 650 . 1268 . . . 424 . Explosions 2269 | . 248 83 54 . . . . . . 785 369 . 730 . . Melee 3473 | . . . . . 168 63 35 770 . 226 . 575 112 1524 . Ramming 30 | . . 8 . . . . . 3 . . . . . 19 . Kinetic 3046 | . . 280 822 . . . 34 650 . 1260 . . . . . Thermal 1274 | . 175 83 452 . . . . . . 150 . . . 414 . Explosive 1139 | . 73 . . . . . . . . 697 369 . . . . Electromagnetic 2476 | . 323 829 125 . . . . . . 298 . . 730 171 . Impact 770 | . . . . . . . . 770 . . . . . . . Slashing 2437 | . . . . . . . . . . 226 . 575 112 1524 . Piercing 266 | . . . . . 168 63 35 . . . . . . . . Highest Corruption 13 | . 10 . . . . . . . . 5 13 13 13 6 6 Average Corruption 5 | . 6 . . . . . . . . 5 5 13 13 3 6 Corruption Purged . | . . . . . . . . . . . . . . . . Corruption Blocked . | . . . . . . . . . . . . . . . . Effects 44 | . 6 . . . . . . . . 13 8 3 4 10 . Message Errors 14 | . . . . . . . . . . 5 5 1 1 2 . Matter Fused 6 | . 1 . . . . . . . . 3 1 1 . . . Heat Flow Errors 4 | . 1 . . . . . . . . . . . 1 2 . Energy Discharges 5 | . 1 . . . . . . . . 1 1 . . 2 . Parts Rejected 2 | . . . . . . . . . . 2 . . . . . Parts Fused 1 | . . . . . . . . . . . . 1 . . . Data Loss (minor) 5 | . . . . . . . . . . 1 1 . . 3 . Data Loss (major) 3 | . 2 . . . . . . . . . . . 1 . . Misfires 3 | . 1 . . . . . . . . . . . 1 1 . Weapon Failures 1 | . . . . . . . . . . 1 . . . . . Overload Shots . | . . . . . . . . . . . . . . . . Overflow Damage 703 | . 10 7 55 . 10 . . 176 . 66 . 183 88 108 . Projectiles 57 | . . . . . . . . 33 . . . . . 24 . Explosions 98 | . 10 7 55 . . . . . . . . . 26 . . Melee 548 | . . . . . 10 . . 143 . 66 . 183 62 84 . Knockbacks 6 | . . . . . . . . 3 . 3 . . . . . Impact 2 | . . . . . . . . 2 . . . . . . . Kinetic 3 | . . . . . . . . . . 3 . . . . . Secondary 1 | . . . . . . . . 1 . . . . . . . Self-Inflicted Damage 343 | . 58 . 71 . . . . 1 . 98 . . 106 9 . Shots 7 | . 2 . 1 . . . . . . 3 . . 1 . . Rammed 7 | . . 4 . . . . . 1 . . . . . 2 . Targets Rammed 7 | . . 4 . . . . . 1 . . . . . 2 . Kicked . | . . . . . . . . . . . . . . . . Crushed . | . . . . . . . . . . . . . . . . Highest Temperature 310 | . 121 108 71 . . . 308 13 . 120 . . 222 310 . Average Temperature 72 | . 55 33 17 . . . 165 6 . 46 . . 133 118 . Received Heat Transfer 1469 | . 39 93 279 . 36 . 435 153 9 185 . 21 . 189 30 Effects 1 | . . . . . . . . . . . . . . 1 . Interference 1 | . . . . . . . . . . . . . . 1 . Siege Activations . | . . . . . . . . . . . . . . . . Robots Corrupted 7 | . . . . . . . . 4 . 1 . . 1 1 . Combat Hostiles 2 | . . . . . . . . 1 . 1 . . . . . Parts Fried 15 | . . 3 . . . . . 5 . 2 . . 1 4 . Impact Corruptions 6 | . . . . . . . . 6 . . . . . . . Robots Melted . | . . . . . . . . . . . . . . . . Combat Hostiles . | . . . . . . . . . . . . . . . . Parts Melted 2 | . . . . . . . . . . . . . . 2 . Heat Transferred 1881 | . 150 150 1012 . . . . . . 99 . . . 470 . Parts Sabotaged . | . . . . . . . . . . . . . . . . Parts Stolen . | . . . . . . . . . . . . . . . . Parts Stripped . | . . . . . . . . . . . . . . . . Power Chain Reactions 7 | . 2 3 1 . . . . . . 1 . . . . . Alert | -11 -10 -9 -8 -7 -7 -7 -6 -6 -5 -5 -5 -5 -5 -4 -4 ------- Run | Yrd Mat Mat Mat Fac Low Dat Pro Fac Fac Ext Cet Arc Hub Fac Upp Peak Influence 496 | . 225 439 360 125 . . . 360 93 316 320 389 496 400 . Initial 242 | . . 94 127 94 . . . 59 61 45 168 128 135 242 . Average 214 | . 128 247 209 105 . . . 176 75 183 308 336 319 278 . Maximum Alert Level 2 | . 1 2 1 . . . . 1 . 1 1 1 2 2 . Low Security (%) 45 | 100 81 29 46 100 . . . 61 100 57 6 8 51 16 . Level 1 52 | . 18 66 53 . . . . 38 . 42 93 91 . 80 . Level 2 2 | . . 4 . . . . . . . . . . 48 2 . Level 3 . | . . . . . . . . . . . . . . . . Level 4 . | . . . . . . . . . . . . . . . . Level 5 . | . . . . . . . . . . . . . . . . High Security . | . . . . . . . . . . . . . . . . Max Security . | . . . . . . . . . . . . . . . . Squads Dispatched 14 | . 1 1 1 1 . . . 4 . 2 . . . 4 . Investigation 5 | . . . . 1 . . . 1 . 2 . . . 1 . Extermination 2 | . . . . . . . . . . . . . . 2 . Reinforcement 7 | . 1 1 1 . . . . 3 . . . . . 1 . Assault . | . . . . . . . . . . . . . . . . Garrison . | . . . . . . . . . . . . . . . . Intercept . | . . . . . . . . . . . . . . . . Searches Triggered . | . . . . . . . . . . . . . . . . Construction Impeded . | . . . . . . . . . . . . . . . . Haulers Reinforced 3 | . . . . . . . . 2 . . . . . 1 . Active Scanning Responses . | . . . . . . . . . . . . . . . . Cargo Convoy Interrupts 1 | . . . . . . . . . . . . . . 1 . Stealth | -11 -10 -9 -8 -7 -7 -7 -6 -6 -5 -5 -5 -5 -5 -4 -4 --------- Run | Yrd Mat Mat Mat Fac Low Dat Pro Fac Fac Ext Cet Arc Hub Fac Upp Distress Signals 9 | . 2 2 1 . . . . . . 1 1 . . 2 . Communications Jammed . | . . . . . . . . . . . . . . . . Distress Signals . | . . . . . . . . . . . . . . . . Times Spotted 188 | . 10 20 17 4 1 4 24 24 2 23 4 5 . 46 4 Peak Tracking Total 19 | . 6 5 3 4 1 4 19 6 1 5 4 2 . 14 4 Tactical Retreats 14 | . . . . . . . 4 4 . 1 . . . 5 . Traps | -11 -10 -9 -8 -7 -7 -7 -6 -6 -5 -5 -5 -5 -5 -4 -4 ------- Run | Yrd Mat Mat Mat Fac Low Dat Pro Fac Fac Ext Cet Arc Hub Fac Upp Traps Triggered 4 | . . . . . . . . 2 . 2 . . . . . Indirectly . | . . . . . . . . . . . . . . . . Trap Hack Attempts . | . . . . . . . . . . . . . . . . Triggered . | . . . . . . . . . . . . . . . . Disarmed . | . . . . . . . . . . . . . . . . Reprogrammed . | . . . . . . . . . . . . . . . . Reused . | . . . . . . . . . . . . . . . . Traps Extracted . | . . . . . . . . . . . . . . . . Installed . | . . . . . . . . . . . . . . . . Triggered . | . . . . . . . . . . . . . . . . Machines | -11 -10 -9 -8 -7 -7 -7 -6 -6 -5 -5 -5 -5 -5 -4 -4 ---------- Run | Yrd Mat Mat Mat Fac Low Dat Pro Fac Fac Ext Cet Arc Hub Fac Upp Machines Disabled 15 | . 1 1 . . . . . . . 3 1 2 7 . . Max in Single Turn 7 | . 1 1 . . . . . . . 1 1 . 7 . . Garrison Access 2 | . . . . . . . . 1 1 . . . . . . Network Hub 1 | . . . . . . . . . . . . . 1 . . Machines Repaired . | . . . . . . . . . . . . . . . . Machines Dismantled . | . . . . . . . . . . . . . . . . Machines Sabotaged . | . . . . . . . . . . . . . . . . Overloaded Fab Kills . | . . . . . . . . . . . . . . . . Hacking | -11 -10 -9 -8 -7 -7 -7 -6 -6 -5 -5 -5 -5 -5 -4 -4 --------- Run | Yrd Mat Mat Mat Fac Low Dat Pro Fac Fac Ext Cet Arc Hub Fac Upp Machines Accessed 45 | . 2 5 3 6 . 2 1 8 3 8 2 1 1 3 . Terminals 36 | . 2 5 3 5 . . 1 6 2 8 2 . 1 1 . Fabricators 3 | . . . . . . . . 1 . . . . . 2 . Repair Stations . | . . . . . . . . . . . . . . . . Recycling Units . | . . . . . . . . . . . . . . . . Scanalyzers . | . . . . . . . . . . . . . . . . Garrison Access 3 | . . . . 1 . . . 1 1 . . . . . . Total Hacks 106 | . 3 7 8 14 . 14 1 23 5 15 2 4 1 9 . Successful 61 | . 1 4 2 2 . 14 1 10 3 9 2 4 1 8 . Failed 45 | . 2 3 6 12 . . . 13 2 6 . . . 1 . Catastrophic 9 | . 1 2 1 3 . . . 1 1 . . . . . . Database Lockouts . | . . . . . . . . . . . . . . . . Manual 32 | . 2 1 7 5 . . . 8 3 . 1 . 1 4 . Terminals 76 | . 3 7 8 11 . . 1 19 3 15 2 . 1 6 . Fabricators 5 | . . . . . . . . 2 . . . . . 3 . Repair Stations . | . . . . . . . . . . . . . . . . Recycling Units . | . . . . . . . . . . . . . . . . Scanalyzers . | . . . . . . . . . . . . . . . . Garrison Access 7 | . . . . 3 . . . 2 2 . . . . . . Terminal Hacks 53 | . 1 4 2 2 . 14 1 7 1 9 2 4 1 5 . Record 13 | . . . . . . 6 . 1 . 1 1 4 . . . Part Schematic 6 | . . . . . . 5 . 1 . . . . . . . Prototype ID Bank 6 | . . 1 1 1 . 3 . . . . . . . . . Open Door 8 | . . . . . . . 1 . . 6 1 . . . . Level Access Points 3 | . . . . . . . . 1 . . . . 1 1 . Branch Access Points 3 | . . . . . . . . 1 1 1 . . . . . Emergency Access Points 1 | . . 1 . . . . . . . . . . . . . Alert Level 1 | . . . . . . . . . . . . . . 1 . Unreport Threat 3 | . . . . . . . . 1 . 1 . . . 1 . Patrol Status 1 | . . . . . . . . 1 . . . . . . . Transport Status 1 | . . . . . . . . . . . . . . 1 . Assault Status 1 | . . . . . . . . 1 . . . . . . . Hauler Manifests 4 | . . 1 1 1 . . . . . . . . . 1 . Zone Layout 2 | . 1 1 . . . . . . . . . . . . . Fabricator Hacks 4 | . . . . . . . . 1 . . . . . 3 . Network Status 2 | . . . . . . . . 1 . . . . . 1 . Build 2 | . . . . . . . . . . . . . . 2 . Repair Station Hacks . | . . . . . . . . . . . . . . . . Recycling Unit Hacks . | . . . . . . . . . . . . . . . . Scanalyzer . | . . . . . . . . . . . . . . . . Garrison Access Hacks 2 | . . . . . . . . 1 1 . . . . . . Seal Access 2 | . . . . . . . . 1 1 . . . . . . Unauthorized Hacks 2 | . . . . . . . . 1 1 . . . . . . Terminals 2 | . . . . . . . . 1 1 . . . . . . Assimilate 2 | . . . . . . . . 1 1 . . . . . . Fabricators . | . . . . . . . . . . . . . . . . Repair Stations . | . . . . . . . . . . . . . . . . Recycling Units . | . . . . . . . . . . . . . . . . Scanalyzers . | . . . . . . . . . . . . . . . . Garrison Access . | . . . . . . . . . . . . . . . . Data Cores Recovered 2 | . . . . . . . . . . . . . 1 1 . Used 2 | . . . . . . . . . . . . . 1 1 . Hacking Detections 33 | . 2 5 2 6 . . 1 6 2 4 2 . 1 2 . Full Trace Events 4 | . . . . 1 . . . 1 . 2 . . . . . Feedback Events . | . . . . . . . . . . . . . . . . Feedback Blocked . | . . . . . . . . . . . . . . . . Robot Schematics Acquired . | . . . . . . . . . . . . . . . . Robots Built 4 | . . . . . . . . . . . . . . 4 . Authchips . | . . . . . . . . . . . . . . . . Time 169 | . . . . . . . . . . . . . . 169 . Total Robot Build Rating 24 | . . . . . . . . . . . . . . 24 . Part Schematics Acquired 6 | . . . . . . 5 . 1 . . . . . . . Parts Built . | . . . . . . . . . . . . . . . . Authchips . | . . . . . . . . . . . . . . . . Time . | . . . . . . . . . . . . . . . . Total Part Build Rating . | . . . . . . . . . . . . . . . . Parts Repaired . | . . . . . . . . . . . . . . . . Time . | . . . . . . . . . . . . . . . . Parts Recycled . | . . . . . . . . . . . . . . . . Recycled Matter . | . . . . . . . . . . . . . . . . Retrieved Matter . | . . . . . . . . . . . . . . . . Retrieved Components . | . . . . . . . . . . . . . . . . Parts Scanalyzed . | . . . . . . . . . . . . . . . . Part Schematics Acquired . | . . . . . . . . . . . . . . . . Parts Damaged . | . . . . . . . . . . . . . . . . Bothacking | -11 -10 -9 -8 -7 -7 -7 -6 -6 -5 -5 -5 -5 -5 -4 -4 ------------ Run | Yrd Mat Mat Mat Fac Low Dat Pro Fac Fac Ext Cet Arc Hub Fac Upp Used RIF Installer . | . . . . . . . . . . . . . . . . Robots Hacked 3 | . . . . 2 . . . . . . . . . 1 . Non-combat 3 | . . . . 2 . . . . . . . . . 1 . Combat . | . . . . . . . . . . . . . . . . Robot Hacks Applied 3 | . . . . 2 . . . . . . . . . 1 . no_distress 1 | . . . . . . . . . . . . . . 1 . find_recycling 1 | . . . . 1 . . . . . . . . . . . find_station 1 | . . . . 1 . . . . . . . . . . . Relay Couplers Released . | . . . . . . . . . . . . . . . . Fabnet Peak Effective % . | . . . . . . . . . . . . . . . . Robots Rewired . | . . . . . . . . . . . . . . . . Allies Hacked 3 | . . . . . . . . . . 2 . . . 1 . Hacks Repelled . | . . . . . . . . . . . . . . . . Allies | -11 -10 -9 -8 -7 -7 -7 -6 -6 -5 -5 -5 -5 -5 -4 -4 -------- Run | Yrd Mat Mat Mat Fac Low Dat Pro Fac Fac Ext Cet Arc Hub Fac Upp Total Allies 20 | . . . . . . . . 1 1 9 5 . . 4 . Largest Group 8 | . . . . . . . . 1 1 5 8 8 6 5 . Highest-Rated Group 706 | . . . . . . . . 26 10 279 706 706 505 466 . Highest-Rated Ally 159 | . . . . . . . . 26 10 159 159 159 96 96 . Total Orders . | . . . . . . . . . . . . . . . . Ally Attacks 150 | . . . . . . . . . . 83 16 20 . 31 . Total Damage 3868 | . . . . . . . . . . 1509 314 1139 . 906 . Kills 18 | . . . . . . . . . . 9 3 4 . 2 . Allies Corrupted 6 | . . . . . . . . . . 1 . . 1 4 . Allies Melted . | . . . . . . . . . . . . . . . . Intel | -11 -10 -9 -8 -7 -7 -7 -6 -6 -5 -5 -5 -5 -5 -4 -4 ------- Run | Yrd Mat Mat Mat Fac Low Dat Pro Fac Fac Ext Cet Arc Hub Fac Upp Robot Analysis Total 145 | . . . . . . 145 . . . . . . . . . Derelict Logs Recovered 1 | . . . . . . . 1 . . . . . . . . Drone Launches . | . . . . . . . . . . . . . . . . Drone Recoveries . | . . . . . . . . . . . . . . . . Exploration | -11 -10 -9 -8 -7 -7 -7 -6 -6 -5 -5 -5 -5 -5 -4 -4 ------------- Run | Yrd Mat Mat Mat Fac Low Dat Pro Fac Fac Ext Cet Arc Hub Fac Upp Turns Passed 4442 | 89 271 634 647 122 68 36 168 536 83 665 304 120 108 590 1 Spaces Moved 4778 | 51 132 243 305 362 173 102 386 962 229 838 139 107 117 631 1 Core 323 | 5 . . . . . . 123 195 . . . . . . . Treads 726 | 46 132 243 305 . . . . . . . . . . . . Legs . | . . . . . . . . . . . . . . . . Wheels . | . . . . . . . . . . . . . . . . Hover 975 | . . . . . . . . 19 . 84 139 107 117 508 1 Flight 2754 | . . . . 362 173 102 263 748 229 754 . . . 123 . Fastest Speed 26 | 50 160 160 160 26 26 26 32 28 28 28 74 58 58 30 60 Average Speed 60 | 149 160 198 160 26 26 27 39 35 28 37 74 68 58 53 60 Slowest Speed 240 | 160 160 240 160 26 26 35 50 99 28 150 74 74 58 100 60 Overloaded Moves . | . . . . . . . . . . . . . . . . Propulsion Burnouts . | . . . . . . . . . . . . . . . . Robots Hopped 15 | . . . . 5 1 3 . 3 1 . . . . 2 . Cave-ins Triggered . | . . . . . . . . . . . . . . . . Exploration Rate (%) 38 | 4 46 31 42 14 23 77 55 36 7 83 82 77 13 22 1 Regions Visited 15 Branch Regions 8 Pre-discovered Areas 30 | . . . . . . 30 . . . . . . . . . Known Exits Taken 5 | . . . . . . . . 1 1 1 . . 1 1 . Unknown Exits Taken 10 | 1 1 1 1 1 1 1 1 . . . 1 1 . . . Scrap Searched . | . . . . . . . . . . . . . . . . Spaces Dug 2 | . . . . . . . . 1 1 . . . . . . Terrain Destroyed 326 | . 20 10 15 . . . . 3 1 59 50 . 168 . . Melee 1 | . . . . . . . . . 1 . . . . . . Projectile 14 | . . . . . . . . 3 . 11 . . . . . AOE 311 | . 20 10 15 . . . . . . 48 50 . 168 . . Terrain Rammed . | . . . . . . . . . . . . . . . . Walls Destroyed . | . . . . . . . . . . . . . . . . Machines Disabled . | . . . . . . . . . . . . . . . . Actions | -11 -10 -9 -8 -7 -7 -7 -6 -6 -5 -5 -5 -5 -5 -4 -4 --------- Run | Yrd Mat Mat Mat Fac Low Dat Pro Fac Fac Ext Cet Arc Hub Fac Upp Total 5820 | 61 170 321 372 390 183 104 396 1073 244 1113 327 140 156 769 1 Wait 459 | 1 22 10 1 . 5 . 6 23 12 133 171 14 27 34 . Move 4735 | 50 131 242 304 351 170 96 385 956 226 837 138 106 116 626 1 Hop 14 | . . . . 5 1 2 . 3 1 . . . . 2 . Pick Up 72 | 4 3 18 10 1 . 1 . 8 . 11 1 5 4 6 . Fast Attach 61 | 6 1 2 2 3 . 2 1 18 . 11 . 2 1 12 . Attach 47 | . . 3 4 8 . 1 1 5 4 10 3 2 . 6 . Detach 18 | . . . . 4 . . . 1 . 10 2 . . 1 . Swap 34 | . 3 4 2 2 . . . . . 5 2 . 1 15 . Drop 58 | . . 5 7 14 . 1 . 5 . 10 1 4 5 6 . Fire 196 | . 10 33 42 . . . 2 24 . 62 5 . 1 17 . Melee 100 | . . . . 2 7 1 1 30 1 4 4 7 1 42 . Ram 2 | . . . . . . . . . . . . . . 2 . Kick . | . . . . . . . . . . . . . . . . Crush 4 | . . 4 . . . . . . . . . . . . . Escape Stasis 18 | . . . . . . . . . . 18 . . . . . Rewire 2 | . . . . . . . . . . 2 . . . . . Trap . | . . . . . . . . . . . . . . . . Miscellaneous . | . . . . . . . . . . . . . . . . Route ------- -11/Scrapyard -10/Materials (discovered 2 exits: *Mat / [*Min]) -9/Materials -8/Materials -7/Factory -7/Lower Caves -7/Data Miner -6/Proximity Caves -6/Factory (discovered 6 exits: *Fac x4 / *Low x2) -5/Factory (discovered 4 exits: Upp x2 / *Ext x2) -5/Extension (discovered 2 exits: *Fac / *Cet) -5/Cetus -5/Archives (discovered 2 exits: *Hub x2) -5/Hub_04(d) (discovered 4 exits: *Fac x4) -4/Factory (discovered 5 exits: Res x4 / *Upp) -4/Upper Caves History --------- Turn | Location | Event 5 | -11/Scrapyard | Discovered new exit (range 14) 90 | -11/Scrapyard | Entered Materials 224 | -10/Materials | Discovered new exit (range 15) 311 | -10/Materials | Build established: Mutant 329 | -10/Materials | Discovered new exit (range 16) 361 | -10/Materials | System corruption reached 10% 361 | -10/Materials | Entered another Materials area 361 | -9/Materials | Evolved 2 slots: Utility x1, Weapon x1 895 | -9/Materials | Build established: Tank 942 | -9/Materials | Discovered new exit (range 16) 995 | -9/Materials | Entered another Materials area 995 | -8/Materials | Evolved 2 slots: Propulsion x2 1575 | -8/Materials | Build established: Gunner 1599 | -8/Materials | Discovered new exit (range 16) 1642 | -8/Materials | Entered Factory 1642 | -7/Factory | Evolved 2 slots: Utility x2 1759 | -7/Factory | Discovered new exit (range 16) 1764 | -7/Factory | Entered Lower Caves 1829 | -7/Lower Caves | A Derelict revealed a hidden shortcut to meet someone special 1832 | -7/Lower Caves | Entered Data Miner 1832 | -7/Data Miner | Discovered new exit (range 6) 1837 | -7/Data Miner | Met Data Miner 1844 | -7/Data Miner | Learned location of Section 7 (-2) 1844 | -7/Data Miner | Acquired the access code to Warlord's prototype stash 1848 | -7/Data Miner | Received God Mode back door access code from Data Miner 1851 | -7/Data Miner | Destroyed Data Miner 1854 | -7/Data Miner | Interfaced with the Data Conduit 1854 | -7/Data Miner | Found Prototype Hackware 1854 | -7/Data Miner | Identified Deep Network Scanner 1856 | -7/Data Miner | Found Prototype Hackware 1856 | -7/Data Miner | Identified System Mapper 1868 | -7/Data Miner | Entered Proximity Caves 1895 | -6/Proximity Caves | Attracted the attention of an 0b10 checkpoint 1933 | -6/Proximity Caves | Lost 8 parts (1p4n2u1w) 1959 | -6/Proximity Caves | Learned Factory emergency access door positions 2000 | -6/Proximity Caves | Core integrity fell below 50% 2004 | -6/Proximity Caves | Entered a huge 0b10 base via the front door 2004 | -6/Proximity Caves | Spotted B-75 Beast 2027 | -6/Proximity Caves | Derelicts attacked a huge 0b10 base 2027 | -6/Proximity Caves | Core integrity fell below 20% 2032 | -6/Proximity Caves | Discovered new exit (range 5) 2036 | -6/Proximity Caves | Entered Factory 2036 | -6/Factory | Evolved 2 slots: Propulsion x1, Utility x1 2038 | -6/Factory | Loaded intel: 223 machine locations 2154 | -6/Factory | Build established: Hacker-Mutant 2226 | -6/Factory | Found Rocket Array 2344 | -6/Factory | Discovered new exit (range 14) 2347 | -6/Factory | Identified exit to Lower Caves 2347 | -6/Factory | Identified exit to Factory 2572 | -6/Factory | Entered another Factory area 2572 | -5/Factory | Evolved 2 slots: Utility x2 2573 | -5/Factory | Loaded intel: 243 machine locations 2596 | -5/Factory | Build established: Hacker-Sprinter 2605 | -5/Factory | Identified exit to Upper Caves 2605 | -5/Factory | Identified exit to Extension 2655 | -5/Factory | Entered Extension 2655 | -5/Extension | Accompanied by 1 ally 2656 | -5/Extension | Loaded intel: 28 machine locations 2660 | -5/Extension | Disrupted transfer network 2686 | -5/Extension | Rescued a captive Derelict 2804 | -5/Extension | Rescued A7 2807 | -5/Extension | Rescued a captive Derelict 2809 | -5/Extension | Rescued a captive Derelict 2830 | -5/Extension | Rescued a captive Derelict 3063 | -5/Extension | Spotted B-75 Beast 3081 | -5/Extension | Spotted B-75 Beast 3093 | -5/Extension | Allies destroyed B-75 Beast 3126 | -5/Extension | Allies destroyed B-75 Beast 3151 | -5/Extension | Lost 4 parts (1n1u2w) 3159 | -5/Extension | Identified exit to Cetus 3161 | -5/Extension | Rescued a captive Derelict 3162 | -5/Extension | Rescued a captive Derelict 3183 | -5/Extension | Rescued a captive Derelict 3188 | -5/Extension | Rescued a captive Derelict 3286 | -5/Extension | Discovered new exit (range 10) 3320 | -5/Extension | Entered Cetus 3320 | -5/Cetus | Accompanied by 3 allies (A7) 3321 | -5/Cetus | Loaded intel: 24 machine locations 3325 | -5/Cetus | Acquired a Cetus Manufacturing Module code from A7 3335 | -5/Cetus | Spotted Cetus Guard 3335 | -5/Cetus | Spotted Cetus Guard 3335 | -5/Cetus | Spotted Cetus Guard 3335 | -5/Cetus | Spotted Cetus Guard 3343 | -5/Cetus | Allies destroyed Cetus Guard 3345 | -5/Cetus | Allies destroyed Cetus Guard 3346 | -5/Cetus | Destroyed Cetus Guard 3348 | -5/Cetus | Allies destroyed Cetus Guard 3397 | -5/Cetus | Escorted A7 to Cetus Mainframe 3408 | -5/Cetus | Started Cetus Manufacturing Module 3433 | -5/Cetus | Manufactured an Enhanced Grunt 3458 | -5/Cetus | Manufactured an Enhanced Grunt 3477 | -5/Cetus | Build established: Scavenger-Mutant 3483 | -5/Cetus | Manufactured an Enhanced Grunt 3508 | -5/Cetus | Manufactured an Enhanced Grunt 3533 | -5/Cetus | Manufactured an Enhanced Grunt 3569 | -5/Cetus | Found a strange terminal 3578 | -5/Cetus | Discovered new exit (range 22) 3622 | -5/Cetus | System corruption reached 10% 3624 | -5/Cetus | Entered Archives 3624 | -5/Archives | Accompanied by 8 allies (A7) 3625 | -5/Archives | Loaded intel: 8 machine locations 3629 | -5/Archives | Received a hacking code to weaken MAIN.C 3643 | -5/Archives | Discovered new exit (range 22) 3655 | -5/Archives | Discovered new exit (range 22) 3664 | -5/Archives | Unable to access archive contents 3744 | -5/Archives | Entered Hub_04(d) 3744 | -5/Hub_04(d) | Accompanied by 6 allies 3745 | -5/Hub_04(d) | Loaded intel: 101 machine locations 3753 | -5/Hub_04(d) | Identified exit to Factory 3800 | -5/Hub_04(d) | Network Hub disabled 3852 | -5/Hub_04(d) | Entered Factory 3852 | -4/Factory | Accompanied by 5 allies 3852 | -4/Factory | Evolved 2 slots: Utility x2 3853 | -4/Factory | Loaded intel: 271 machine locations 3939 | -4/Factory | Lost 3 allies 3993 | -4/Factory | Lost 7 parts (1p1n3u2w) 4083 | -4/Factory | Fabricated E-15 Imp? 4151 | -4/Factory | Fabricated W-44 Eye? 4190 | -4/Factory | Lost 5 parts (1p2n1u1w) 4228 | -4/Factory | Identified exit to Research 4245 | -4/Factory | Build established: Wizard-Mutant 4368 | -4/Factory | Discovered new exit (range 20) 4442 | -4/Factory | Cargo convoy interrupted 4442 | -4/Factory | Identified exit to Upper Caves 4442 | -4/Factory | Entered Upper Caves 4443 | -4/Upper Caves | Self-destructed Last Messages --------------- 04430_ Destroyed Antigrav System. 04435_ Antimatter Reactor destroyed. 04438_ Imp. Antigrav System destroyed. 04441_ C-30 ARC bursts open, deploying its payload. 04441_ X-82 Rainmaker unfolds itself. 04441_ H-77 Assassin unfolds itself. 04441_ I-47 Archangel unfolds itself. 04441_ Wave Gun destroyed. 04441_ Slug penetrates X-82 Rainmaker. 04441_ Slug penetrates Wall. 04441_ P-70 Sage resets W-44 Eye, system corruption cleaned. 04441_ C-30 ARC bursts open, deploying its payload. 04441_ H-77 Assassin unfolds itself. 04441_ X-72 Disruptor unfolds itself. 04441_ H-77 Assassin unfolds itself. 04441_ M-36 Artificer unfolds itself. 04442_ ALERT: Cargo convoy interrupted, initiating access lockdown. 04442_ EXIT=IDENTIFIED: UPPER CAVES LOCATION=UPPER CAVES GOAL=ESCAPE Map ----- +----------------------------------------------------+ | ??????????????????????????????????????????? | | ??????????????????????????????????????????? | | ??????????????????????????????????????????? | | ??????????????????????????????????????????? | | ??????????????????????????????????????????? | | ??????????????????????????????????????????? | | ??????????????????????????????????????????? | | ??????????????????????????????????????????? | | ??????????????????????????????????????????? | | ??????????????????????????????????????????? | | ??????????????????????????????????????????? | | ??????????????????????????????????????????? | | ??????????????????????????????????????????? | | ??????????????????????????????????????????? | | ??????????????????????????????????????????? | | ??????????????????????????????????????????? | | ??????????##??????????????????????????????? | | ??????????? ?????????###????????????????? | | ????????????? ????????# ##???????????????? | | ??????????????# ?????## #???????????????? | | ???????????????# #??## #???????????????? | | ??????????????## ##g #???????????????? | | ??????????????? g #???????????????? | | ??????????????????? gg #???????????????? | | ??????????????????????# #???????????????? | | ??????????????????????# @#???????????????? | | ??????????????????????# ##???????????????? | | ??????????????????????####????????????????? | | ??????????????????????????????????????????? | | ??????????????????????????????????????????? | | ??????????????????????????????????????????? | | ??????????????????????????????????????????? | | ??????????????????????????????????????????? | | ??????????????????????????????????????????? | | ??????????????????????????????????????????? | | ??????????????????????????????????????????? | | ??????????????????????????????????????????? | | ??????????????????????????????????????????? | | ??????????????????????????????????????????? | | ??????????????????????????????????????????? | | ??????????????????????????????????????????? | | ??????????????????????????????????????????? | | ??????????????????????????????????????????? | | ??????????????????????????????????????????? | | ??????????????????????????????????????????? | | ??????????????????????????????????????????? | | ??????????????????????????????????????????? | | ??????????????????????????????????????????? | | ??????????????????????????????????????????? | | ??????????????????????????????????????????? | +----------------------------------------------------+ Best States ------------- Heat Dissipation 48 Energy Generation 25 Energy Capacity 900 Matter Stores 300 Matter Capacity 300 Sight Range 22 Robot Scan Range 16 Terrain Scan Density 10 Armor Coverage 225 Resistance: TH 25 Evasion (%) 72 Targeting Accuracy 6 Melee Accuracy 8 Target Analysis 6 Core Analysis 6 Armor Integrity Analysis 30 Recoil Reduction 4 Offensive Hacking 72 Defensive Hacking 24 Item Schematics ----------------- Imp. Plasma Cutter | -7/Data Miner | Free HERF Cannon | -7/Data Miner | Free Antimatter Cannon | -7/Data Miner | Free Biomechanical Wings | -7/Data Miner | Free Lgt. Regenerative Plating | -7/Data Miner | Free Cld. VTOL Module | -6/Factory | Hacked Robot Schematics ------------------ None Fabricated ------------ E-15 Imp | x2 | -4/Factory | Preloaded W-44 Eye | x2 | -4/Factory | Preloaded Alien Tech Used ----------------- None Achievements -------------- Collateral Damage Challenges ------------ None Game ------ Seed AutogunNodeRay Manual? 0 Play Time 01:10:08 Cumulative 104.1 hours Start 2024.10.02 @ 20:45:19 End 2024.10.02 @ 21:55:42 Sessions 1 Manual Loads 0 Difficulty Rogue Special Mode None Game No. 122 Rogue 118 Adventurer 0 Explorer 4 Win Type - Total 6 Types 4/0/0/2/0/0/0/0/0 Lore% 45 Gallery% 65 Achievement% 57 Wizard Run 0 Options --------- Layout 0 ASCII 0 Keyboard 0 Movement Numpad Keybinds 0 Fullscreen 2 Font 18/SmallcapsGlow Map View 76x50 Zoom Use 0% Tactical HUD 1 Map Filters NONE Filters NONE Steam 1 RUN: e863f997-a92c-4c02-8aa5-c2ddf7e5af27